fUSD/lending_fUSD_20250727
["ID","MTS","AMOUNT","RATE_DAILY","PERIOD"]
[375171905,1753574516149,191.75,0.00016157,2]
[375171923,1753574688203,158.0,0.00013699,2]
[375171951,1753575032220,-1032.39,0.00019178,2]
[375171952,1753575032230,-175.02,0.00019178,2]
[375171953,1753575032241,-301.95,0.00019603,2]
[375171954,1753575032251,-300.66,0.00019603,2]
[375171955,1753575032262,-302.31,0.00019603,2]
[375171956,1753575032272,-304.3,0.00019603,2]
[375171957,1753575032281,-150.0,0.00019726,2]
[375171958,1753575032292,-155.16,0.0002,2]
[375171959,1753575032302,-400.0,0.00020067,2]
[375171960,1753575032311,-354.89,0.00020076,2]
[375171962,1753575032321,-150.0,0.00020111,7]
[375171964,1753575032331,-165.0,0.0002014,2]
[375171965,1753575032342,-300.0,0.0002014,2]
[375171966,1753575032352,-9216.856,0.00020141,2]
[375171967,1753575032363,-248.71531821,0.00020141,2]
[375171968,1753575032374,-1538.01,0.0002015,2]
[375171969,1753575032384,-400.0,0.00020177,2]
[375171970,1753575032395,-181.51,0.00020194,2]
[375171971,1753575032405,-400.0,0.00020262,2]
[375171972,1753575032416,-150.0,0.00020334,7]
[375171973,1753575032426,-400.0,0.0002038,2]
[375171974,1753575032436,-150.0,0.00020457,4]
[375171975,1753575032446,-1000.0,0.00020469,2]
[375171976,1753575032456,-507.0,0.00020506,2]
[375171977,1753575032467,-682.17,0.00020512,2]
[375171978,1753575032476,-151.0,0.00020564,2]
[375171979,1753575032486,-500.0,0.00020564,2]
[375171980,1753575032495,-151.0,0.00020564,2]
[375171981,1753575032505,-500.0,0.00020564,2]
[375171982,1753575032515,-500.0,0.00020564,2]
[375171983,1753575032525,-151.0,0.00020564,2]
[375171984,1753575032535,-500.0,0.00020564,2]
[375171985,1753575032544,-151.0,0.00020564,2]
[375171986,1753575032554,-500.0,0.00020564,2]
[375171987,1753575032564,-160.0,0.00020564,2]
[375171988,1753575032573,-500.0,0.00020564,2]
[375171989,1753575032583,-500.0,0.00020564,2]
[375171990,1753575032593,-500.0,0.00020564,2]
[375171991,1753575032602,-500.0,0.00020564,2]
[375171992,1753575032612,-500.0,0.00020564,2]
[375171993,1753575032621,-495.24155663,0.00020564,2]
[375171994,1753575032631,-373.07297731,0.00020564,2]
[375171995,1753575032641,-400.0,0.00020568,2]
[375171996,1753575032651,-400.0,0.00020595,2]
[375171997,1753575032660,-2720.0,0.00020603,2]
[375171998,1753575032671,-541.24192819,0.00020629,2]
[375171999,1753575032681,-400.0,0.0002066,2]
[375172000,1753575032690,-400.0,0.00020669,2]
[375172001,1753575032699,-1032.39,0.00020679,2]
[375172002,1753575032710,-388.0,0.00020685,2]
[375172003,1753575032720,-1120.11221966,0.00020689,2]
[375172004,1753575033014,-4240.14160761,0.00020689,2]
[375172005,1753575033026,-4197.62584473,0.00020689,2]
[375172006,1753575033037,-684.0,0.00020709,2]
[375172007,1753575033047,-400.0,0.00020762,2]
[375172008,1753575033057,-201.5863344,0.000209,4]
[375172009,1753575033068,-5000.0,0.00021,2]
[375172010,1753575033078,-1000.0,0.0002103,2]
[375172011,1753575033089,-596.0,0.00021031,2]
[375172012,1753575033098,-1289.0,0.00021031,2]
[375172013,1753575033108,-890.0,0.00021031,2]
[375172014,1753575033118,-1168.0,0.00021031,2]
[375172015,1753575033128,-2137.81038944,0.00021031,2]
[375172016,1753575033182,-3920.18961056,0.00021031,2]
[375172017,1753575033192,-4131.0,0.00021031,2]
[375172018,1753575033204,-863.0,0.00021031,2]
[375172019,1753575033215,-169.38994294,0.00021041,30]
[375172020,1753575033225,-168.0,0.00021088,2]
[375172021,1753575033235,-300.0,0.00021096,2]
[375172022,1753575033245,-1648.2,0.00021185,2]
[375172023,1753575033256,-150.0,0.00021187,4]
[375172024,1753575033266,-211.09751648,0.00021198,2]
[375172025,1753575033277,-477.38037575,0.00021199,2]
[375172026,1753575033287,-840.27732271,0.00021199,2]
[375172027,1753575033297,-160.0,0.00021199,2]
[375172028,1753575033307,-201.5863344,0.00021233,4]
[375172029,1753575033317,-6957.84884497,0.00021237,2]
[375172030,1753575033329,-1499.39208786,0.00021237,2]
[375172031,1753575033350,-1454.28028703,0.00021237,2]
[375172032,1753575033360,-169.38994294,0.0002126,30]
[375172033,1753575033370,-178.265,0.00021377,2]
[375172034,1753575033379,-1371.68917513,0.00021407,2]
[375172035,1753575033391,-2622.00512487,0.00021407,2]
[375172036,1753575033400,-1434.4096,0.00021407,2]
[375172037,1753575033410,-490.541577,0.00021461,8]
[375172038,1753575033420,-157.12691952,0.000215,2]
[375172071,1753575037904,-156.16124371,0.000195,2]
[375172074,1753575037914,-150.0,0.00020103,7]
[375172076,1753575037923,-2.87308048,0.000215,2]
[375172078,1753575037933,-121.01543845,0.00021505,2]
[375172080,1753575037944,-153.37666155,0.00021505,2]
[375172082,1753575037954,-3606.337,0.00021507,2]
[375172083,1753575037964,-204.033,0.00021507,2]
[375172084,1753575037973,-257.91778498,0.0002151,2]
[375172085,1753575037983,-201.5863344,0.00021567,5]
[375172087,1753575037993,-150.0,0.00021578,7]
[375172089,1753575038002,-150.0,0.00021593,7]
[375172091,1753575038011,-150.0,0.00021606,2]
[375172094,1753575038021,-150.0,0.00021606,2]
[375172096,1753575038032,-150.0,0.00021606,2]
[375172098,1753575038042,-150.0,0.00021606,2]
[375172100,1753575038052,-150.0,0.00021606,2]
[375172102,1753575038068,-150.0,0.00021606,2]
[375172104,1753575038078,-150.0,0.00021606,2]
[375172106,1753575038088,-150.0,0.00021606,2]
[375172108,1753575038097,-808.0,0.00021606,2]
[375172110,1753575038109,-3356.0,0.00021606,2]
[375172112,1753575038118,-953.0,0.00021606,2]
[375172114,1753575038128,-2019.0,0.00021606,2]
[375172116,1753575038137,-563.0,0.00021606,2]
[375172118,1753575038147,-958.0,0.00021606,2]
[375172119,1753575038157,-1270.0,0.00021606,2]
[375172120,1753575038166,-1689.0,0.00021606,2]
[375172121,1753575038176,-1482.9,0.00021617,2]
[375172122,1753575038185,-611.86186231,0.0002162,2]
[375172266,1753575039708,-150.0,0.0002,7]
[375172268,1753575039723,-1449.5535187,0.00021031,2]
[375172596,1753575043145,-150.0,0.000205,7]
[375172598,1753575043155,-2839.65899279,0.00021031,2]
[375172601,1753575043169,-607.28966398,0.00021031,2]
[375172606,1753575043203,-314.47877063,0.00021031,2]
[375172608,1753575043216,-710.73750185,0.00021031,2]
[375172626,1753575043377,-150.0,0.00021,7]
[375172628,1753575043387,-5184.26837009,0.00021031,2]
[375172638,1753575043476,-3280.57671842,0.00021031,2]
[375172640,1753575043488,-3661.44003807,0.00021031,2]
[375172864,1753575045808,-3338.99642547,0.00021031,2]
[375172866,1753575045819,-1365.25813769,0.0002162,2]
[375172868,1753575045831,-150.0,0.00021648,2]
[375172870,1753575045841,-150.0,0.00021685,7]
[375172872,1753575045852,-1051.18602756,0.00021692,2]
[375172874,1753575045862,-285.00460059,0.00021693,2]
[375172876,1753575045875,-212.55,0.000217,2]
[375172878,1753575045885,-758.0,0.000217,2]
[375172880,1753575045895,-774.0,0.000217,2]
[375172882,1753575045905,-239.0,0.000217,2]
[375172884,1753575045916,-8892.10297193,0.00021701,2]
[375172886,1753575045927,-1760.64491116,0.00021702,2]
[375172888,1753575045937,-511.33657895,0.00021702,2]
[375172890,1753575045948,-1760.64491116,0.00021708,2]
[375172892,1753575045958,-285.00460059,0.00021709,2]
[375172895,1753575045969,-285.00460059,0.0002171,2]
[375172897,1753575045979,-1760.64491116,0.00021712,2]
[375172899,1753575045990,-43.50452315,0.00021712,2]
[375172913,1753575046120,-467.8320558,0.00021712,2]
[375172915,1753575046130,-771.38768502,0.00021713,2]
[375172916,1753575046140,-1542.77537002,0.00021714,2]
[375172917,1753575046150,-269.40404668,0.00021715,2]
[375172918,1753575046160,-200.0,0.00021717,2]
[375172919,1753575046171,-2500.0,0.00021717,2]
[375172920,1753575046181,-269.40404668,0.00021719,2]
[375172921,1753575046191,-1542.77537002,0.00021721,2]
[375172922,1753575046202,-4440.47723142,0.00021722,2]
[375172923,1753575046212,-1051.18602756,0.00021723,2]
[375172924,1753575046222,-200.0,0.00021724,2]
[375172925,1753575046232,-570.00920117,0.00021725,2]
[375172926,1753575046243,-771.38768502,0.00021728,2]
[375172927,1753575046253,-8892.10297193,0.00021731,2]
[375172928,1753575046263,-570.00920117,0.00021732,2]
[375172929,1753575046274,-771.38768501,0.00021732,2]
[375172930,1753575046283,-8892.10297193,0.00021734,2]
[375172931,1753575046294,-525.59301379,0.00021734,2]
[375172932,1753575046304,-4440.47723142,0.00021735,2]
[375172933,1753575046315,-511.33657895,0.00021736,2]
[375172934,1753575046325,-285.00460059,0.00021737,2]
[375172935,1753575046335,-771.38768502,0.00021738,2]
[375172937,1753575046345,-150.0,0.00021738,2]
[375172938,1753575046355,-285.00460059,0.00021741,2]
[375172940,1753575046365,-269.40404668,0.00021743,2]
[375172943,1753575046376,-200.0,0.00021748,2]
[375172944,1753575046386,-771.38768501,0.0002175,2]
[375172947,1753575046396,-771.38768501,0.00021752,2]
[375172949,1753575046407,-771.38768501,0.00021752,2]
[375172951,1753575046417,-525.59301379,0.00021754,2]
[375172953,1753575046427,-269.40404668,0.00021756,2]
[375172955,1753575046437,-285.00460059,0.00021756,2]
[375172957,1753575046448,-285.00460059,0.00021757,2]
[375172959,1753575046458,-150.0,0.00021758,2]
[375172961,1753575046469,-771.38768502,0.00021762,2]
[375172963,1753575046480,-269.40404668,0.00021763,2]
[375172965,1753575046490,-525.59301379,0.00021764,2]
[375172967,1753575046500,-1051.18602756,0.00021765,2]
[375172969,1753575046511,-285.00460059,0.00021768,2]
[375172971,1753575046521,-8892.10297193,0.00021768,2]
[375172972,1753575046531,-200.0,0.00021768,2]
[375172973,1753575046542,-285.00460059,0.00021769,2]
[375172974,1753575046552,-285.00460059,0.00021769,2]
[375172975,1753575046562,-285.00460059,0.00021772,2]
[375172976,1753575046572,-269.40404668,0.00021774,2]
[375172977,1753575046582,-771.38768501,0.00021775,2]
[375172978,1753575046592,-285.00460059,0.00021775,2]
[375172979,1753575046602,-570.00920117,0.00021781,2]
[375172981,1753575046612,-285.00460059,0.00021781,2]
[375172983,1753575046622,-285.00460059,0.00021781,2]
[375172985,1753575046632,-1760.64491116,0.00021782,2]
[375172987,1753575046643,-1760.64491116,0.00021783,2]
[375172989,1753575046652,-8892.10297193,0.00021785,2]
[375172991,1753575046662,-10278.247505,0.00021785,2]
[375172993,1753575046672,-500.0,0.00021785,2]
[375172995,1753575046682,-500.0,0.00021785,2]
[375172997,1753575046692,-791.0,0.00021785,2]
[375172999,1753575046706,-500.0,0.00021785,2]
[375173001,1753575046717,-500.0,0.00021785,2]
[375173003,1753575046727,-500.0,0.00021785,2]
[375173004,1753575046737,-500.0,0.00021785,2]
[375173005,1753575046748,-500.0,0.00021785,2]
[375173006,1753575046761,-500.0,0.00021785,2]
[375173007,1753575046771,-500.0,0.00021785,2]
[375173008,1753575046781,-500.0,0.00021785,2]
[375173009,1753575046792,-500.0,0.00021785,2]
[375173011,1753575046802,-500.0,0.00021785,2]
[375173013,1753575046812,-500.0,0.00021785,2]
[375173014,1753575046823,-500.0,0.00021785,2]
[375173015,1753575046833,-500.0,0.00021785,2]
[375173016,1753575046843,-500.0,0.00021785,2]
[375173017,1753575046854,-500.0,0.00021785,2]
[375173018,1753575046864,-500.0,0.00021785,2]
[375173019,1753575046873,-500.0,0.00021785,2]
[375173020,1753575046883,-500.0,0.00021785,2]
[375173021,1753575046893,-500.0,0.00021785,2]
[375173022,1753575046903,-500.0,0.00021785,2]
[375173023,1753575046913,-500.0,0.00021785,2]
[375173024,1753575046925,-500.0,0.00021785,2]
[375173025,1753575046940,-500.0,0.00021785,2]
[375173026,1753575046951,-500.0,0.00021785,2]
[375173027,1753575046961,-500.0,0.00021785,2]
[375173028,1753575046972,-500.0,0.00021785,2]
[375173029,1753575046983,-500.0,0.00021785,2]
[375173030,1753575046994,-500.0,0.00021785,2]
[375173031,1753575047004,-500.0,0.00021785,2]
[375173032,1753575047015,-500.0,0.00021785,2]
[375173033,1753575047025,-500.0,0.00021785,2]
[375173034,1753575047036,-500.0,0.00021785,2]
[375173035,1753575047046,-500.0,0.00021785,2]
[375173036,1753575047056,-500.0,0.00021785,2]
[375173037,1753575047066,-500.0,0.00021785,2]
[375173038,1753575047076,-500.0,0.00021785,2]
[375173039,1753575047086,-325.02055792,0.00021785,2]
[375173040,1753575047216,-174.97944208,0.00021785,2]
[375173041,1753575047227,-121.37826592,0.00021785,2]
[375173055,1753575431289,588.0,0.00027396,120]
[375173056,1753575539038,507.0,0.00018506,2]
[375173057,1753575766643,157.69,0.00013699,2]
[375173061,1753575909854,1287.12,0.000154,2]
[375173062,1753575909882,6876.63939129,0.000154,2]
[375173063,1753575930081,-150.0,0.00019,2]
[375173090,1753576231841,-5279.39177622,0.00019,2]
[375173100,1753576232048,-21728.02833179,0.00019,2]
[375173101,1753576232059,-506.19599154,0.00019,2]
[375173102,1753576232095,-14963.18922657,0.00019,2]
[375173103,1753576232176,-16598.19467388,0.00019,2]
[375173104,1753576232186,-11081.60508701,0.00019,2]
[375173105,1753576232197,-13098.58400846,0.00019,2]
[375173136,1753576237904,-615.79774909,0.00019,2]
[375173137,1753576237921,-529.78971903,0.00019,2]
[375173138,1753576237937,-5994.19800133,0.00019,2]
[375173139,1753576238018,-0.00395092,0.00019,2]
[375173900,1753576245752,-626.79998483,0.00018715,2]
[375174191,1753576589549,507.0,0.0001847,2]
[375174192,1753576618808,507.0,0.0001847,2]
[375174193,1753576708878,511.0,0.0001847,2]
[375174194,1753576852610,312.1,0.00018508,2]
[375174195,1753576868174,2773.74,0.00018476,2]
[375174198,1753576887128,178.78,0.00018329,2]
[375174199,1753576905023,157.24,0.00013699,2]
[375174201,1753576922404,250.0,0.00018284,2]
[375174202,1753576970348,233.22,0.00018262,2]
[375174203,1753577144039,584.5,0.00018296,2]
[375174239,1753577432326,-768.475631,0.00018707,2]
[375174240,1753577432336,-171.74,0.00018802,2]
[375174241,1753577432346,-3541.36763005,0.0001882,2]
[375174242,1753577432356,-6209.40779786,0.000189,2]
[375174244,1753577432367,-1200.0,0.00018998,2]
[375174245,1753577432378,-300.0,0.00018999,2]
[375174247,1753577432388,-915.98911884,0.00018999,2]
[375174249,1753577432398,-300.0,0.00018999,2]
[375174251,1753577432407,-24692.99957416,0.00019,2]
[375174253,1753577432417,-1772.6132269,0.00019,2]
[375174255,1753577432426,-156.16124371,0.00019,2]
[375174257,1753577432436,-31142.1622829,0.00019,2]
[375174259,1753577432445,-6517.60238,0.00019,2]
[375174261,1753577432455,-184.7240401,0.00019,2]
[375174263,1753577432465,-40705.1086425,0.00019,2]
[375174265,1753577432475,-4074.4697363,0.00019,2]
[375174267,1753577432484,-71947.0613333,0.00019,2]
[375174269,1753577432494,-500.0,0.00019,2]
[375174271,1753577432503,-500.0,0.00019,2]
[375174273,1753577432512,-500.0,0.00019,2]
[375174275,1753577432521,-500.0,0.00019,2]
[375174277,1753577432531,-51014.7138076,0.00019,2]
[375174279,1753577432540,-200.0,0.00019,2]
[375174281,1753577432549,-3217.6932246,0.00019,2]
[375174285,1753577432988,-5775.34,0.00019003,2]
[375174286,1753577433032,-6290.78066921,0.00019013,2]
[375174287,1753577433043,-185.71650583,0.00019013,2]
[375174288,1753577433053,-500.0,0.000191,2]
[375174289,1753577433065,-500.0,0.000191,2]
[375174290,1753577433076,-500.0,0.000191,2]
[375174291,1753577433087,-500.0,0.000191,2]
[375174292,1753577433097,-624.19579772,0.00019102,2]
[375174293,1753577433107,-151.0,0.00019102,2]
[375174294,1753577433118,-151.0,0.00019102,2]
[375174295,1753577433131,-151.0,0.00019102,2]
[375174296,1753577433141,-233.41831213,0.00019102,2]
[375174297,1753577433151,-151.0,0.00019102,2]
[375174298,1753577433161,-163.16394105,0.00019102,2]
[375174299,1753577433172,-151.0,0.00019102,2]
[375174300,1753577433182,-151.0,0.0001911,2]
[375174301,1753577433194,-151.0,0.0001911,2]
[375174302,1753577433205,-151.0,0.00019111,2]
[375174303,1753577433216,-151.0,0.00019111,2]
[375174304,1753577433226,-599.55231807,0.00019112,2]
[375174305,1753577433236,-500.0,0.00019112,2]
[375174306,1753577433247,-500.0,0.00019112,2]
[375174307,1753577433257,-500.0,0.00019112,2]
[375174308,1753577433267,-500.0,0.00019112,2]
[375174309,1753577433277,-500.0,0.00019112,2]
[375174310,1753577433287,-153.79187301,0.00019112,2]
[375174311,1753577433297,-354.75743136,0.00019112,2]
[375174312,1753577433308,-488.23866663,0.00019112,2]
[375174313,1753577433318,-151.0,0.00019113,2]
[375174314,1753577433328,-500.0,0.00019178,2]
[375174315,1753577433338,-500.0,0.00019178,2]
[375174316,1753577433349,-458.81648769,0.00019178,2]
[375174317,1753577433361,-500.0,0.00019178,2]
[375174318,1753577433371,-500.0,0.00019178,2]
[375174319,1753577433381,-500.0,0.00019178,2]
[375174320,1753577433390,-500.0,0.00019178,2]
[375174321,1753577433400,-500.0,0.00019178,2]
[375174322,1753577433410,-500.0,0.00019178,2]
[375174323,1753577433420,-500.0,0.00019178,2]
[375174324,1753577433429,-500.0,0.00019178,2]
[375174325,1753577433439,-500.0,0.00019178,2]
[375174326,1753577433452,-500.0,0.00019178,2]
[375174327,1753577433463,-500.0,0.00019178,2]
[375174328,1753577433473,-500.0,0.00019178,2]
[375174329,1753577433483,-500.0,0.00019178,2]
[375174330,1753577433493,-500.0,0.00019178,2]
[375174331,1753577433503,-500.0,0.00019178,2]
[375174332,1753577433514,-500.0,0.00019178,2]
[375174333,1753577433525,-500.0,0.00019178,2]
[375174334,1753577433534,-500.0,0.00019178,2]
[375174335,1753577433544,-500.0,0.00019178,2]
[375174336,1753577433554,-500.0,0.00019178,2]
[375174337,1753577433564,-500.0,0.00019178,2]
[375174338,1753577433575,-500.0,0.00019178,2]
[375174339,1753577433584,-500.0,0.00019178,2]
[375174340,1753577433594,-500.0,0.00019178,2]
[375174341,1753577433605,-500.0,0.00019178,2]
[375174342,1753577433615,-500.0,0.00019178,2]
[375174343,1753577433624,-277.8900905,0.00019178,2]
[375174344,1753577433634,-500.0,0.00019178,2]
[375174345,1753577433644,-500.0,0.00019178,2]
[375174346,1753577433654,-500.0,0.00019178,2]
[375174347,1753577433664,-500.0,0.00019178,2]
[375174348,1753577433674,-500.0,0.00019178,2]
[375174349,1753577433684,-250.00000001,0.00019178,2]
[375174350,1753577433694,-991.81,0.00019178,2]
[375174351,1753577433704,-200.0,0.0001919,2]
[375174352,1753577433714,-500.0,0.000192,2]
[375174353,1753577433724,-6517.60238,0.0001921,2]
[375174354,1753577433734,-6209.40779778,0.00019224,2]
[375174355,1753577433743,-6290.78066913,0.00019325,2]
[375174356,1753577433753,-200.0,0.00019382,2]
[375174357,1753577433763,-185.71650576,0.00019385,2]
[375174358,1753577433773,-228.67799736,0.000194,2]
[375174359,1753577433783,-228.67799723,0.000194,2]
[375174360,1753577433793,-228.67799723,0.000194,2]
[375174361,1753577433803,-228.67799723,0.000194,2]
[375174362,1753577433813,-312.1,0.00019433,2]
[375174363,1753577433823,-507.0,0.00019436,2]
[375174364,1753577433833,-506.0,0.00019436,2]
[375174365,1753577433843,-1000.0,0.00019499,2]
[375174366,1753577433853,-500.0,0.000195,2]
[375174367,1753577433863,-500.66574435,0.000195,2]
[375174368,1753577433873,-374.32838389,0.000195,2]
[375174369,1753577433883,-500.0,0.000195,2]
[375174370,1753577433894,-228.67799723,0.00019514,2]
[375174371,1753577433904,-150.0,0.00019528,2]
[375174372,1753577433914,-150.0,0.00019536,2]
[375174373,1753577433926,-387.0,0.00019545,2]
[375174374,1753577433936,-1000.0,0.00019548,2]
[375174375,1753577433948,-1000.0,0.00019548,2]
[375174376,1753577433959,-1000.0,0.00019548,2]
[375174377,1753577433971,-1000.0,0.00019548,2]
[375174378,1753577433980,-6209.40779778,0.00019549,2]
[375174379,1753577433990,-200.0,0.00019576,2]
[375174380,1753577434000,-150.0,0.0001958,2]
[375174381,1753577434011,-522.40160034,0.00019587,2]
[375174382,1753577434021,-1000.0,0.00019618,2]
[375174383,1753577434031,-190.61,0.00019624,2]
[375174384,1753577434041,-6290.78066913,0.00019637,2]
[375174385,1753577434051,-600.0,0.0001964,2]
[375174386,1753577434060,-600.0,0.0001964,2]
[375174387,1753577434070,-246.66,0.0001964,2]
[375174388,1753577434080,-1000.0,0.00019648,2]
[375174389,1753577434091,-1000.0,0.00019648,2]
[375174390,1753577434100,-1000.0,0.00019648,2]
[375174391,1753577434110,-1005.31978418,0.00019648,2]
[375174392,1753577434120,-150.0,0.00019666,2]
[375174393,1753577434135,-228.67799723,0.00019668,2]
[375174394,1753577434145,-150.0,0.00019689,2]
[375174395,1753577434155,-150.0,0.0001969,2]
[375174396,1753577434165,-150.0,0.00019697,2]
[375174397,1753577434175,-150.0,0.00019701,2]
[375174398,1753577434185,-150.0,0.00019701,2]
[375174399,1753577434195,-150.0,0.00019701,2]
[375174400,1753577434205,-178.78,0.00019703,2]
[375174401,1753577434215,-6517.60238,0.0001971,2]
[375174402,1753577434225,-150.0,0.00019726,2]
[375174403,1753577434235,-1000.0,0.00019748,2]
[375174404,1753577434245,-185.71650576,0.00019758,2]
[375174405,1753577434255,-200.0,0.00019771,2]
[375174406,1753577434266,-228.99697403,0.00019784,2]
[375174407,1753577434276,-228.67799723,0.00019821,2]
[375174408,1753577434286,-6209.40779778,0.00019873,2]
[375174409,1753577434296,-500.0,0.000199,7]
[375174410,1753577434306,-204.42,0.00019901,2]
[375174411,1753577434316,-6290.78066913,0.00019948,2]
[375174412,1753577434326,-228.67799723,0.00019975,2]
[375174413,1753577434336,-5775.34,0.00019976,2]
[375174414,1753577434346,-465.69,0.00019982,2]
[375174415,1753577434356,-1944.8074225,0.00019986,2]
[375174416,1753577434365,-34167.3566702,0.00019986,2]
[375174417,1753577434375,-184.7240401,0.00019986,2]
[375174418,1753577434386,-54102.3277757,0.00019986,2]
[375174419,1753577434398,-3251.41242898,0.00019986,2]
[375174420,1753577438093,-150.0,0.0001969,7]
[375174421,1753577438103,-285.36264707,0.00019986,2]
[375174422,1753577438198,-403.52311006,0.00019986,2]
[375174598,1753577440095,-1612.2779424,0.00019,2]
[375174600,1753577440105,-151.0,0.00019114,2]
[375174602,1753577440114,-1475.19644189,0.00019986,2]
[375174604,1753577440124,-901.52562071,0.00019986,2]
[375174626,1753577440347,-925.79389542,0.00019986,2]
[375175172,1753577446242,-595.97657703,0.00019986,2]
[375176324,1753577646043,150.0,0.00018382,2]
[375176325,1753577665995,222.0,0.00027397,120]
[375176326,1753577706697,300.0,0.00018089,2]
[375176328,1753577827128,150.0,0.0001736,2]
[375176329,1753577827170,150.0,0.00017491,2]
[375176330,1753577827237,150.0,0.00017985,2]
[375176331,1753577849200,400.29,0.0002739,120]
[375176332,1753577885442,150.0,0.00017458,2]
[375176333,1753577890898,157.24,0.00013699,2]
[375176335,1753577893434,150.0,0.00018201,2]
[375176336,1753577893489,300.0,0.00018495,2]
[375176338,1753577947021,150.0,0.00018373,2]
[375176339,1753577947128,150.0,0.00017775,2]
[375176340,1753577947184,300.0,0.00018212,2]
[375176341,1753578005526,150.0,0.00017986,2]
[375176342,1753578011475,-185.27,0.00018603,2]
[375176343,1753578011500,-52.33889379,0.00018608,2]
[375176344,1753578013619,-208.96283736,0.00018608,2]
[375176345,1753578018221,-38.69826885,0.00018608,2]
[375176346,1753578019787,-163.0,0.00018612,3]
[375176347,1753578066029,150.0,0.00017219,2]
[375176348,1753578066066,150.0,0.0001819,2]
[375176349,1753578066204,150.0,0.00016354,2]
[375176350,1753578082027,259.86,0.00018541,2]
[375176351,1753578105860,666.0,0.00018527,3]
[375176352,1753578125611,150.0,0.000181,2]
[375176353,1753578173317,292.25,0.00018513,2]
[375176354,1753578179726,160.86085879,0.0001824,2]
[375176363,1753578561370,180.0,0.00018507,7]
[375176365,1753578632201,-181.02,0.00018621,2]
[375176366,1753578632211,-2000.0,0.0001863,3]
[375176367,1753578632221,-300.0,0.0001863,2]
[375176368,1753578632231,-1000.0,0.00018639,2]
[375176369,1753578632242,-300.0,0.00018802,2]
[375176370,1753578632252,-156.46909076,0.000189,2]
[375176371,1753578632262,-150.0,0.00018961,2]
[375176372,1753578632272,-151.0,0.00018964,2]
[375176373,1753578632282,-151.0,0.00018965,2]
[375176374,1753578632292,-151.0,0.00018965,2]
[375176375,1753578632301,-151.0,0.00018966,2]
[375176376,1753578632312,-150.0,0.00019063,2]
[375176377,1753578632321,-507.13754216,0.00019075,2]
[375176378,1753578632331,-1200.0,0.00019177,2]
[375176379,1753578632341,-151.0,0.00019178,2]
[375176380,1753578632351,-212.89,0.00019178,2]
[375176381,1753578632360,-1134.83,0.00019178,2]
[375176382,1753578632370,-150.0,0.00019199,2]
[375176383,1753578632380,-301.71,0.00019222,2]
[375176384,1753578632390,-303.9,0.00019227,2]
[375176385,1753578632399,-304.36,0.0001925,2]
[375176386,1753578632413,-300.0,0.00019261,2]
[375176387,1753578632423,-151.0,0.00019262,2]
[375176388,1753578632433,-151.0,0.00019262,2]
[375176389,1753578632443,-151.0,0.00019262,2]
[375176390,1753578632453,-151.0,0.00019262,2]
[375176391,1753578632463,-151.0,0.00019262,2]
[375176392,1753578632473,-151.0,0.00019262,2]
[375176393,1753578632482,-151.0,0.00019262,2]
[375176394,1753578632493,-151.0,0.00019262,2]
[375176395,1753578632503,-151.0,0.00019262,2]
[375176396,1753578632512,-151.0,0.00019262,2]
[375176397,1753578632522,-151.0,0.00019262,2]